bitfinex/quotes_SOLUSD_20240906
["timestamp","ask_amount","ask_price","bid_price","bid_amount"]
[1725585405916,16.8379386,129.58,129.51,45.90375054]
[1725585406118,0.8308386,129.58,129.52,20.20468076]
[1725585406417,8.5481386,129.58,129.53,52.72]
[1725585406631,7.7184,129.56,129.52,19.301]
[1725585407133,7.7184,129.56,129.52,27.0217]
[1725585407311,7.7179,129.57,129.52,27.0217]
[1725585407629,27.7185,129.56,129.52,19.301]
[1725585409034,20.0,129.56,129.52,19.301]
[1725585409411,20.0,129.57,129.53,45.0]
[1725585409831,20.0,129.57,129.54,19.2979]
[1725585410043,0.8308386,129.58,129.56,7.7183]
[1725585410411,0.8308386,129.58,129.57,7.7178]
[1725585410734,0.8308386,129.58,129.57,53.21873427]
[1725585412642,0.8308386,129.71,129.61,6.3463]
[1725585412807,7.7112,129.69,129.63,7.7141]
[1725585413622,7.7113,129.68,129.62,52.7148]
[1725585414228,0.8308386,129.71,129.62,45.0]
[1725585414427,7.7113,129.68,129.62,52.7147]
[1725585415123,7.7107,129.69,129.63,7.7142]
[1725585415330,7.7107,129.69,129.64,45.0]
[1725585415715,20.0,129.68,129.64,45.0]
[1725585416122,27.7116,129.68,129.64,45.0]
[1725585416838,27.7116,129.68,129.63,45.0]
[1725585417241,20.0,129.68,129.61,14.0616]
[1725585417624,20.8308386,129.71,129.61,14.0616]
[1725585418321,7.7125,129.66,129.61,6.3463]
[1725585418521,7.7119,129.67,129.62,45.0]
[1725585418741,20.0,129.66,129.62,52.7146]
[1725585419741,20.0,129.67,129.62,69.1484]
[1725585420047,7.7105,129.7,129.64,7.7135]
[1725585420218,0.8308386,129.71,129.65,45.0]
[1725585420419,0.8308386,129.71,129.69,19.2767]
[1725585420630,0.8308386,129.71,129.7,52.7101]
[1725585420839,0.8308386,129.71,129.69,43.421]
[1725585421048,0.8308386,129.71,129.7,52.7101]
[1725585422730,14.27739066,129.83,129.73,7.7081]
[1725585422928,14.27739066,129.83,129.74,45.0]
[1725585422929,6.3065,129.83,129.74,45.0]
[1725585423143,6.3065,129.83,129.71,26.9818]
[1725585423327,6.3065,129.83,129.72,45.0]
[1725585424239,20.0,129.82,129.72,45.0]
[1725585424449,19.5,129.82,129.72,45.0]
[1725585424750,19.5,129.82,129.74,7.7075]
[1725585424922,19.5,129.82,129.75,45.0]
[1725585425121,19.5,129.82,129.72,52.7083]
[1725585425434,19.5,129.82,129.72,7.7088]
[1725585426825,19.5,129.82,129.73,45.0]
[1725585427024,7.7066,129.76,129.73,45.0]
[1725585427229,7.7066,129.76,129.71,19.2724]
[1725585427945,20.0,129.75,129.65,16.4338]
[1725585428145,7.709,129.72,129.66,7.7119]
[1725585428731,7.7084,129.73,129.67,7.7118]
[1725585429048,20.0,129.72,129.68,7.7112]
[1725585429353,27.7089,129.72,129.67,7.7118]
[1725585429526,20.0,129.72,129.67,7.7118]
[1725585429725,7.7088,129.73,129.67,7.7118]
[1725585429926,20.0,129.72,129.67,7.7118]
[1725585430853,27.7092,129.72,129.66,7.7124]
[1725585431627,20.0,129.72,129.64,6.1348]
[1725585431831,7.7113,129.68,129.62,19.2866]
[1725585432026,7.7121,129.67,129.62,19.2866]
[1725585432233,7.7121,129.67,129.55,296.5932]
[1725585432234,7.7137,129.64,129.58,19.2916]
[1725585432638,7.7144,129.63,129.58,19.2916]
[1725585432841,6.0779,129.67,129.58,27.0082]
[1725585432842,7.7137,129.64,129.58,27.0082]
[1725585433540,7.7147,129.63,129.58,19.2916]
[1725585433865,7.7148,129.62,129.58,19.2916]
[1725585434449,20.0,129.63,129.58,27.0087]
[1725585434853,6.0779,129.67,129.58,19.2916]
[1725585435042,27.7125,129.66,129.61,7.7154]
[1725585435559,7.7131,129.65,129.6,19.2888]
[1725585435757,7.7137,129.64,129.6,19.2888]
[1725585435957,27.713,129.66,129.6,27.0046]
[1725585436336,7.7112,129.69,129.63,7.7141]
[1725585436533,7.7112,129.69,129.64,45.0]
[1725585436737,7.7101,129.7,129.64,52.7135]
[1725585437837,7.711,129.69,129.64,52.7135]
[1725585438038,19.271,129.73,129.65,7.7128]
[1725585438241,7.7102,129.7,129.64,71.9967]
[1725585438533,20.0,129.69,129.65,7.713]
[1725585438739,20.0,129.69,129.66,52.7122]
[1725585438943,27.7103,129.7,129.64,71.9964]
[1725585439343,7.7109,129.69,129.64,71.9964]
[1725585439656,20.0,129.68,129.64,71.9964]
[1725585440035,20.0,129.69,129.64,71.9964]
[1725585440939,20.0,129.69,129.59,16.0967]
[1725585441258,7.7132,129.65,129.59,23.8132]
[1725585441452,7.7127,129.66,129.6,7.7154]
[1725585441639,20.0,129.65,129.61,7.7154]
[1725585441842,20.0,129.65,129.62,7.7147]
[1725585442161,27.7132,129.65,129.6,27.005]
[1725585442662,20.0,129.65,129.61,7.7154]
[1725585443161,20.0,129.65,129.62,7.7148]
[1725585443356,20.0,129.66,129.62,7.7148]
[1725585445460,7.7135,129.65,129.6,27.0051]
[1725585445967,27.7126,129.66,129.61,7.7151]
[1725585446337,7.713,129.65,129.61,7.7151]
[1725585446759,27.7125,129.66,129.61,7.7151]
[1725585446962,27.7125,129.66,129.62,0.40699036]
[1725585447145,20.0,129.66,129.62,64.2864]
[1725585447462,7.7113,129.68,129.63,7.7141]
[1725585447641,7.7101,129.7,129.66,7.7123]
[1725585447835,7.7101,129.7,129.64,19.2835]
[1725585448037,7.7101,129.7,129.65,45.0]
[1725585448953,6.0779,129.75,129.66,26.9923]
[1725585448954,8.93957876,129.75,129.66,26.9923]
[1725585449142,7.7099,129.71,129.66,26.9923]
[1725585449342,7.7101,129.7,129.66,26.9923]
[1725585449645,7.7101,129.7,129.66,27.40043067]
[1725585449957,7.7101,129.7,129.66,26.9923]
[1725585450275,20.0,129.69,129.66,19.28]
[1725585450941,27.7108,129.69,129.64,7.7135]
[1725585451260,27.7108,129.69,129.63,19.2849]
[1725585451261,7.7114,129.68,129.63,26.999]
[1725585451435,7.7114,129.68,129.64,45.0]
[1725585452147,7.7114,129.68,129.64,52.7136]
[1725585453275,7.7114,129.68,129.64,45.0]
[1725585453480,7.2114,129.68,129.64,45.0]
[1725585454175,7.2114,129.68,129.64,52.7135]
[1725585454564,27.7107,129.69,129.65,7.7129]
[1725585454757,27.7107,129.69,129.65,8.5696576]
[1725585455370,20.0,129.69,129.65,8.5696576]
[1725585455674,7.709,129.72,129.67,7.7118]
[1725585455876,20.0,129.71,129.68,0.8566773]
[1725585456081,27.7096,129.71,129.67,7.7118]
[1725585458751,20.0,129.71,129.68,7.7111]
[1725585459253,20.0,129.71,129.67,26.9904]
[1725585459448,7.7101,129.7,129.66,7.7123]
[1725585459650,7.7111,129.69,129.64,33.1447]
[1725585460879,7.7113,129.68,129.64,33.1447]
[1725585461480,7.7125,129.66,129.61,19.2877]
[1725585461773,16.6556,129.7,129.61,19.2877]
[1725585462075,7.7127,129.66,129.61,27.0029]
[1725585463176,7.7127,129.66,129.62,45.0]
[1725585464182,7.7127,129.66,129.61,27.0029]
[1725585464359,20.0,129.65,129.61,27.0029]
[1725585465059,27.7131,129.65,129.61,27.0029]
[1725585465459,27.7131,129.65,129.61,19.2877]
[1725585466571,27.7131,129.65,129.62,0.47585844]
[1725585466774,27.7131,129.65,129.61,27.003]
[1725585466979,27.7131,129.65,129.61,19.2877]
[1725585467182,27.7131,129.65,129.57,15.2542]
[1725585467183,7.715,129.62,129.58,19.2922]
[1725585468066,7.715,129.62,129.58,27.0091]
[1725585468457,7.7144,129.63,129.59,9.2595918]
[1725585468660,20.0,129.62,129.59,9.2595918]
[1725585469076,7.7138,129.64,129.6,45.0]
[1725585469282,20.0,129.63,129.6,45.0]
[1725585469965,7.713,129.66,129.61,7.7153]
[1725585470166,20.0,129.65,129.61,7.7153]
[1725585470370,20.0,129.65,129.62,0.41335299]
[1725585471182,16.6556,129.7,129.63,7.7141]
[1725585471381,16.6556,129.7,129.64,0.42026134]
[1725585471562,7.7117,129.68,129.64,1.14488765]
[1725585471962,7.7117,129.68,129.64,53.85838765]
[1725585472180,7.7108,129.69,129.64,53.85838765]
[1725585472703,7.7108,129.69,129.65,1.54241427]
[1725585473569,20.0,129.68,129.65,1.54241427]
[1725585473958,27.7113,129.68,129.64,52.7135]
[1725585476781,7.714,129.64,129.59,27.007]
[1725585477299,7.714,129.64,129.6,7.7159]
[1725585477584,7.7132,129.65,129.6,7.7159]
[1725585477803,27.7139,129.64,129.6,7.7159]
[1725585477979,7.7139,129.64,129.6,7.7159]
[1725585478290,7.7139,129.64,129.59,27.007]
[1725585479165,20.0,129.63,129.59,27.007]
[1725585480087,27.7142,129.63,129.59,27.007]
[1725585480481,20.0,129.63,129.6,7.716]
[1725585480685,34.7722,129.71,129.62,7.7147]
[1725585480880,34.7722,129.71,129.61,64.2878]
[1725585480881,7.713,129.65,129.61,72.0032]
[1725585481065,20.0,129.64,129.61,72.0032]
[1725585481390,34.7722,129.71,129.61,64.2878]
[1725585481608,20.0,129.7,129.61,64.2878]
[1725585481913,20.0,129.7,129.62,8.77609327]
[1725585482102,7.7129,129.66,129.62,1.06139327]
[1725585482297,20.0,129.65,129.62,1.54270111]
[1725585482604,7.7108,129.69,129.65,7.713]
[1725585483115,7.7108,129.69,129.64,9.2553956]
[1725585484005,20.0,129.68,129.64,9.2553956]
[1725585485615,7.7102,129.7,129.66,7.7124]
[1725585485823,7.7102,129.7,129.66,9.25452478]
[1725585486190,7.7102,129.7,129.66,1.54212478]
[1725585486396,7.711,129.69,129.65,26.9945]
[1725585486611,7.7114,129.68,129.64,14.0107]
[1725585487321,7.7108,129.69,129.64,14.0107]
[1725585487513,20.0,129.68,129.64,15.55309878]
[1725585487702,20.0,129.68,129.64,14.0107]
[1725585488196,20.0,129.68,129.64,15.55310021]
[1725585488396,20.0,129.68,129.64,14.0107]
[1725585488904,41.9957,129.68,129.59,19.2911]
[1725585489320,7.7139,129.64,129.59,19.2911]
[1725585489518,20.0,129.63,129.59,27.0076]
[1725585490113,20.0,129.63,129.59,19.2911]
[1725585490114,27.7145,129.63,129.59,19.2911]
[1725585490314,7.7149,129.62,129.59,19.2911]
[1725585490736,7.7149,129.62,129.58,7.717]
[1725585491114,20.0,129.63,129.59,7.7164]
[1725585491115,27.7144,129.63,129.59,7.7164]
[1725585491315,20.0,129.63,129.59,7.7164]
[1725585491536,20.0,129.63,129.6,7.716]
[1725585491926,27.7143,129.63,129.59,7.7166]
[1725585492428,7.7149,129.62,129.58,19.2924]
[1725585492637,27.7144,129.63,129.59,45.0]
[1725585492859,27.7144,129.63,129.59,52.7166]
[1725585493340,21.9957,129.68,129.62,7.7147]
[1725585493806,7.7125,129.66,129.61,7.7153]
[1725585494130,21.9957,129.68,129.6,19.2894]
[1725585494131,7.7136,129.64,129.6,19.2894]
[1725585494833,7.7136,129.64,129.6,27.0053]
[1725585495930,7.7132,129.65,129.61,9.25817432]
[1725585496230,21.9957,129.68,129.6,19.2894]
[1725585496435,20.0,129.67,129.6,19.2894]
[1725585496652,20.0,129.67,129.57,40.6667]
[1725585496653,39.2803,129.67,129.57,40.6667]
[1725585496856,7.7154,129.62,129.57,48.3845]
[1725585497248,7.7156,129.61,129.57,48.3845]
[1725585497456,7.7156,129.61,129.57,42.0874]
[1725585499445,7.7147,129.63,129.59,7.7166]
[1725585499644,41.2749,129.68,129.6,46.5304796]
[1725585499846,7.7126,129.66,129.61,7.7148]
[1725585500154,7.7126,129.66,129.62,7.7146]
[1725585500662,7.7126,129.66,129.61,27.0032]
[1725585501157,20.0,129.65,129.61,27.0032]
[1725585501346,20.0,129.65,129.62,52.7147]
[1725585501529,20.0,129.66,129.62,52.7147]
[1725585501736,27.7126,129.66,129.62,7.7147]
[1725585501950,27.7126,129.66,129.61,27.0033]
[1725585502232,7.7132,129.65,129.61,19.288]
[1725585502542,7.7132,129.65,129.61,20.80869819]
[1725585503229,27.7125,129.66,129.61,27.0029]
[1725585503431,27.7125,129.66,129.62,7.7147]
[1725585504532,27.7125,129.66,129.61,27.0034]
[1725585505962,20.0,129.66,129.58,19.2922]
[1725585506143,7.7144,129.63,129.58,19.2922]
[1725585506467,20.0,129.62,129.58,27.0091]
[1725585506632,20.0,129.62,129.59,7.7165]
[1725585507344,20.0,129.62,129.58,27.0094]
[1725585507646,57.8295,129.7,129.6,19.2894]
[1725585507860,7.7124,129.66,129.61,1.4990957]
[1725585508045,7.7124,129.66,129.61,45.0]
[1725585508365,7.712,129.67,129.62,7.7147]
[1725585509243,20.0,129.66,129.62,7.7147]
[1725585509455,15.4974,129.71,129.63,23.70342658]
[1725585509764,7.7102,129.7,129.66,7.712]
[1725585510133,7.7102,129.7,129.64,45.0]
[1725585510334,6.4983,129.72,129.63,22.5491]
[1725585510649,7.7099,129.71,129.66,7.7123]
[1725585511334,7.7102,129.7,129.66,7.7123]
[1725585511530,7.7102,129.7,129.65,26.9948]
[1725585511733,20.0,129.69,129.65,26.9948]
[1725585511928,27.7108,129.69,129.65,26.9948]
[1725585512363,7.7118,129.68,129.64,45.0]
[1725585512542,27.7107,129.69,129.64,52.7134]
[1725585513367,27.7107,129.69,129.65,7.713]
[1725585514466,20.0,129.69,129.66,7.7121]
[1725585514754,20.0,129.7,129.66,7.7121]
[1725585515467,20.0,129.7,129.67,7.7117]
[1725585515842,20.0,129.7,129.66,7.7123]
[1725585517267,20.0,129.7,129.64,64.2836]
[1725585517268,20.0,129.7,129.67,7.7118]
[1725585520059,20.0,129.7,129.66,26.9927]
[1725585520265,27.7101,129.7,129.66,26.9927]
[1725585521437,7.7108,129.69,129.63,41.8338]
[1725585521834,20.0,129.7,129.65,7.7129]
[1725585521835,27.7102,129.7,129.65,7.7129]
[1725585522140,27.7102,129.7,129.66,8.48932086]
[1725585522955,20.0,129.7,129.67,7.7117]
[1725585523168,20.0,129.7,129.68,7.7108]
[1725585523645,20.0,129.71,129.68,7.7108]
[1725585524370,20.0,129.71,129.67,26.9905]
[1725585526252,20.0,129.71,129.64,19.2834]
[1725585526577,7.7107,129.69,129.65,7.7126]
[1725585527349,7.7107,129.69,129.66,1.00467409]
[1725585527554,7.7107,129.69,129.65,7.7126]
[1725585528275,7.7113,129.68,129.64,26.9969]
[1725585528842,7.7109,129.69,129.64,26.9969]
[1725585529048,7.7109,129.69,129.65,1.5423544]
[1725585529253,7.7109,129.69,129.64,26.9969]
[1725585529951,19.2714,129.73,129.64,20.82575703]
[1725585530150,7.7125,129.66,129.61,27.003]
[1725585530388,7.7125,129.66,129.62,7.7147]
[1725585530776,7.7131,129.65,129.61,19.2878]
[1725585531755,7.7131,129.65,129.6,29.2606]
[1725585531756,7.7143,129.63,129.58,19.2924]
[1725585531957,7.7143,129.63,129.58,27.0095]
[1725585532557,27.7151,129.62,129.58,19.2924]
[1725585532875,20.0,129.62,129.57,15.0243]
[1725585533171,20.0,129.62,129.55,27.0155]
[1725585533372,20.0,129.63,129.55,27.0155]
[1725585534073,7.7161,129.6,129.55,27.0155]
[1725585534669,7.7161,129.6,129.56,7.7183]
[1725585534869,7.7154,129.62,129.57,7.7175]
[1725585535082,1.34399583,129.59,129.58,0.83365945]
[1725585535258,20.0,129.61,129.57,7.7175]
[1725585535578,1.34402336,129.59,129.58,0.71626589]
[1725585535778,1.34402336,129.59,129.57,7.7175]
[1725585537477,1.34402336,129.59,129.58,7.7172]
[1725585537781,1.34402336,129.59,129.57,27.0112]
[1725585538459,1.34402336,129.59,129.54,25.8187]
[1725585538660,9.06072336,129.59,129.54,33.5382]
[1725585539473,1.34402336,129.59,129.55,9.2621578]
[1725585539786,21.34402336,129.59,129.56,45.0]
[1725585540291,21.34402336,129.59,129.56,52.7182]
[1725585540456,1.34402336,129.59,129.58,7.7172]
[1725585541786,1.34402336,129.59,129.57,7.7177]
[1725585541986,1.34402336,129.59,129.56,19.2947]
[1725585542197,1.34402336,129.59,129.54,6.5204]
[1725585542482,9.06102336,129.59,129.54,14.2395]
[1725585543079,9.06102336,129.59,129.55,0.53952475]
[1725585543262,9.06102336,129.59,129.55,7.719]
[1725585544479,9.06102336,129.59,129.55,8.46300911]
[1725585544678,1.34402336,129.59,129.56,7.7182]
[1725585544982,21.34402336,129.59,129.57,0.74389426]
[1725585545503,1.34402336,129.59,129.58,7.7172]
[1725585545675,1.34402336,129.59,129.58,52.7172]
[1725585546498,1.34402336,129.59,129.58,68.738]
[1725585547403,1.34402336,129.59,129.58,70.2807021]
[1725585547597,1.34402336,129.59,129.58,76.4789021]
[1725585547782,1.34402336,129.59,129.58,74.9362]
[1725585549100,20.0,129.67,129.64,7.7133]
[1725585549310,7.7107,129.69,129.64,7.7133]
[1725585549814,7.7102,129.7,129.65,7.7129]
[1725585550191,1.34322904,129.68,129.65,7.7129]
[1725585550588,9.05472904,129.68,129.63,26.9991]
[1725585551109,1.34322904,129.68,129.63,19.2849]
[1725585551310,1.34322904,129.68,129.64,45.0]
[1725585551619,1.34322904,129.68,129.66,7.7124]
[1725585552411,1.34322904,129.68,129.65,26.9946]
[1725585553616,1.34322904,129.68,129.65,19.2817]
[1725585553793,1.34322904,129.68,129.62,27.0014]
[1725585554121,1.34322904,129.68,129.63,45.0]
[1725585554416,9.05452904,129.68,129.63,7.7138]
[1725585554622,20.0,129.67,129.63,7.7138]
[1725585554792,1.34322904,129.68,129.64,19.2834]
[1725585556095,1.34322904,129.68,129.65,7.7129]
[1725585560147,7.7119,129.67,129.63,7.714]
[1725585560435,1.34322904,129.68,129.64,7.7135]
[1725585560636,21.34322904,129.68,129.64,7.7135]
[1725585561413,29.05452904,129.68,129.64,7.7135]
[1725585564517,1.34322904,129.68,129.66,7.7123]
[1725585564726,1.34322904,129.68,129.66,9.25212433]
[1725585565451,1.34322904,129.68,129.65,26.995]
[1725585566619,1.34322904,129.68,129.66,7.712]
[1725585567719,1.34322904,129.68,129.66,9.25424894]
[1725585568014,1.34322904,129.68,129.66,7.712]
[1725585568446,1.34322904,129.68,129.65,26.9949]
[1725585569135,1.34322904,129.68,129.65,19.2821]
[1725585569438,1.34322904,129.68,129.67,7.7118]
[1725585569736,1.34322904,129.68,129.67,52.7118]
[1725585571836,1.34322904,129.68,129.67,102.7118]
[1725585572039,1.34322904,129.68,129.67,68.8732]
[1725585576448,1.34322904,129.68,129.67,23.8732]
[1725585577764,1.34322904,129.68,129.67,68.8732]
[1725585578353,1.34322904,129.68,129.67,52.7118]
[1725585579652,2.904e-05,129.68,129.67,85.50382881]
[1725585579870,22.2494,129.78,129.67,85.50382881]
[1725585579871,20.0,129.77,129.72,7.7083]
[1725585580164,20.0,129.77,129.71,19.2723]
[1725585580165,20.0,129.77,129.71,26.9816]
[1725585580662,1.34259805,129.76,129.71,26.9816]
[1725585580850,7.7069,129.76,129.71,26.9816]
[1725585581051,27.7072,129.75,129.71,26.9816]
[1725585581248,7.7077,129.74,129.7,7.71]
[1725585581442,7.7071,129.75,129.7,7.71]
[1725585581762,7.7071,129.75,129.71,7.7094]
[1725585581763,20.0,129.74,129.71,7.7094]
[1725585582369,20.0,129.75,129.72,7.7087]
[1725585582565,20.0,129.77,129.72,7.7087]
[1725585583375,7.7066,129.76,129.71,7.7094]
[1725585583543,20.0,129.75,129.71,7.7094]
[1725585584754,20.0,129.75,129.72,7.7088]
[1725585584966,20.0,129.76,129.72,7.7088]
[1725585585165,20.0,129.76,129.73,7.7082]
[1725585586074,20.0,129.76,129.73,7.7081]
[1725585586252,20.0,129.77,129.73,7.7081]
[1725585587953,20.0,129.77,129.74,7.7076]
[1725585590867,1.34239546,129.76,129.74,7.7076]
[1725585591055,1.34239546,129.76,129.72,19.2715]
[1725585591261,1.34239546,129.76,129.7,6.467]
[1725585591568,9.04899546,129.76,129.71,7.7089]
[1725585591749,9.04899546,129.76,129.72,7.7088]
[1725585593050,1.34239546,129.76,129.72,7.7088]
[1725585593272,21.34239546,129.76,129.73,7.7082]
[1725585593577,1.34239546,129.76,129.73,19.2694]
[1725585593784,1.34239546,129.76,129.74,52.7071]
[1725585594880,1.34239546,129.76,129.75,7.7071]
[1725585597674,1.34239546,129.76,129.75,52.7071]
[1725585602390,20.0,129.8,129.75,52.7071]
[1725585602563,20.0,129.8,129.76,45.0]
[1725585603181,27.7042,129.8,129.76,45.0]
[1725585603986,7.7048,129.79,129.75,7.7071]
[1725585604192,7.7048,129.79,129.74,7.7076]
[1725585604363,20.0,129.78,129.74,7.7076]
[1725585604563,21.34226875,129.78,129.74,7.7076]
[1725585605081,21.34226875,129.78,129.74,8.6742691]
[1725585605269,21.34226875,129.78,129.74,7.7076]
[1725585605787,29.04766875,129.78,129.74,7.7076]
[1725585608864,1.34226875,129.78,129.75,19.2673]
[1725585609071,1.34226875,129.78,129.76,46.17666304]
[1725585609276,1.34226875,129.78,129.77,1.17657236]
[1725585609572,1.34226875,129.78,129.77,8.67324491]
[1725585609794,1.34226875,129.78,129.77,53.67324491]
[1725585609997,1.34226875,129.78,129.77,59.0145]
[1725585610290,1.34226875,129.78,129.77,79.0145]
[1725585610991,1.34226875,129.78,129.77,59.0145]
[1725585614589,1.34226875,129.78,129.77,15.10753484]
[1725585615387,1.34226875,129.78,129.77,7.7059]
[1725585617803,1.34226875,129.78,129.77,52.7059]
[1725585622600,1.34226875,129.78,129.77,54.24620344]
[1725585622802,1.34226875,129.78,129.77,75.9259]
[1725585625312,0.8308386,129.84,129.83,52.7023]
[1725585626711,0.8308386,129.84,129.83,113.31093371]
[1725585627083,0.8308386,129.84,129.83,113.81759576]
[1725585627607,0.8308386,129.84,129.83,75.30569576]
[1725585627794,0.8308386,129.84,129.83,52.7023]
[1725585631488,0.8308386,129.84,129.83,54.24040149]
[1725585631905,0.8308386,129.84,129.83,52.7023]
[1725585635609,0.8308386,129.84,129.83,7.7023]
[1725585637134,0.8308386,129.84,129.83,52.7023]
[1725585639229,0.8308386,129.84,129.83,91.4465]
[1725585639442,0.8308386,129.84,129.83,88.2265]
[1725585641619,1.34120224,129.89,129.83,88.2265]
[1725585641620,1.34120224,129.89,129.88,26.9479]
[1725585641819,1.34120224,129.89,129.88,71.9479]
[1725585642722,1.34120224,129.89,129.87,7.6999]
[1725585643129,1.34120224,129.89,129.85,26.9527]
[1725585643341,1.34120224,129.89,129.82,26.9598]
[1725585643342,15.9837,129.88,129.82,26.9598]
[1725585643522,27.7001,129.87,129.82,26.9598]
[1725585643917,27.7001,129.87,129.83,7.7023]
[1725585644447,7.7008,129.86,129.82,19.2569]
[1725585644654,20.0,129.85,129.82,19.2569]
[1725585644941,1.34165176,129.86,129.82,19.2569]
[1725585645118,1.34165176,129.86,129.83,7.7022]
[1725585645322,7.7012,129.85,129.79,19.2613]
[1725585645537,1.34165176,129.86,129.81,7.7034]
[1725585645732,1.34165176,129.86,129.82,45.0]
[1725585645733,9.04235176,129.86,129.82,45.0]
[1725585645939,9.04235176,129.86,129.82,52.7029]
[1725585646148,1.34165176,129.86,129.82,52.7029]
[1725585647651,1.34165176,129.86,129.82,53.56217836]
[1725585648151,9.04235176,129.86,129.81,26.9613]
[1725585648730,20.0,129.85,129.81,26.9613]
[1725585649128,20.0,129.85,129.82,7.7029]
[1725585650652,1.34165176,129.86,129.83,7.7022]
[1725585650948,23.6832,129.88,129.83,7.7022]
[1725585651252,20.0,129.87,129.83,7.7022]
[1725585651953,27.7,129.87,129.83,7.7023]
[1725585654124,20.0,129.87,129.83,7.7023]
[1725585654930,27.7001,129.87,129.82,7.7029]
[1725585655348,7.7013,129.85,129.81,19.2579]
[1725585656533,27.7004,129.87,129.81,19.2579]
[1725585657154,27.7004,129.87,129.82,7.7029]
[1725585657349,27.7004,129.87,129.83,7.7023]
[1725585657649,20.0,129.87,129.83,7.7023]
[1725585660847,1.34130693,129.86,129.83,7.7023]
[1725585661942,1.34130693,129.86,129.81,19.2579]
[1725585661943,1.34130693,129.86,129.82,7.7028]
[1725585662362,9.04190693,129.86,129.81,26.9614]
[1725585662546,1.34130693,129.86,129.82,7.7028]
[1725585662748,1.34130693,129.86,129.82,9.09429603]
[1725585663569,1.34130693,129.86,129.83,9.09474984]
[1725585663754,1.34130693,129.86,129.83,7.7021]
[1725585664168,1.34130693,129.86,129.82,7.7027]
[1725585665063,1.34130693,129.86,129.83,7.7021]
[1725585667252,1.34130693,129.86,129.82,7.7028]
[1725585667570,1.34130693,129.86,129.83,7.7023]
[1725585667974,1.34130693,129.86,129.82,7.7027]
[1725585668272,9.04190693,129.86,129.82,7.7027]
[1725585668567,1.34130693,129.86,129.83,7.7019]
[1725585670538,1.34130693,129.86,129.77,61.7492]
[1725585670846,1.34130693,129.86,129.85,7.7011]
[1725585671048,7.6981,129.91,129.86,7.7]
[1725585671438,7.6989,129.89,129.84,7.7017]
[1725585671663,7.6983,129.9,129.85,7.7011]
[1725585672055,7.6983,129.9,129.84,19.2538]
[1725585672056,20.0,129.89,129.86,7.7005]
[1725585672868,20.0,129.9,129.86,7.7005]
[1725585673178,27.6984,129.9,129.85,7.7011]
[1725585673561,20.0,129.9,129.86,7.7004]
[1725585673870,1.34113432,129.89,129.86,7.7004]
[1725585675150,1.34113432,129.89,129.87,7.6999]
[1725585675773,1.34113432,129.89,129.86,7.7004]
[1725585676871,1.34113432,129.89,129.87,7.6999]
[1725585677946,1.34113432,129.89,129.88,7.6994]
[1725585679373,1.34113432,129.89,129.88,52.6994]
[1725585681570,3.432e-05,129.89,129.88,143.9132311]
[1725585681786,0.8308386,129.97,129.88,143.9132311]
[1725585681787,0.8308386,129.97,129.94,19.2383]
[1725585681958,0.8308386,129.97,129.96,7.6946]
[1725585682463,2.17075488,129.97,129.96,7.6946]
[1725585682979,2.17075488,129.97,129.95,7.6951]
[1725585683850,2.17075488,129.97,129.94,26.9341]
[1725585684051,2.17075488,129.97,129.91,6.0486]
[1725585684271,9.86485488,129.97,129.92,7.6967]
[1725585684854,20.0,129.96,129.92,7.6967]
[1725585686666,20.0,129.96,129.93,7.6963]
[1725585686877,22.17075488,129.97,129.93,7.6963]